{"text_format":"3","workbook":"xlsx","n_sheets":5,"sheets":["Hinweise","Deckblatt","Vertretungsregelung","Sach-,Personalausg.Finanzierung","Angaben zur Fachkraft"],"not_rendered":{"defined_names":5,"comments":1},"read":"whole","date_system":"1900"}

{"sheet":"Hinweise","index":0,"n_rows":19,"n_cols":8,"rows_kept":19,"merged":[[4,0,4,7],[5,0,5,7],[6,0,6,7],[7,0,7,7],[8,0,8,7],[9,0,9,7],[10,0,10,7],[11,0,11,7],[12,0,12,7],[13,0,13,7],[14,0,14,7],[15,0,15,7],[16,0,16,7],[17,0,17,7],[18,0,18,7],[19,0,19,7]]}
["Landeshauptstadt Dresden - Jugendamt",{"$nulls":6},{"$f":"Deckblatt!V1","v":"Förderung von Trägern der freien Jugendhilfe"}]
[]
["Hinweise zum Fördermittelantrag Schulsozialarbeit"]
[]
["Rechtliche Grundlage der Förderung von Trägern der freien Jugendhilfe ist der § 74 SGB VIII und die diesen \n§ ausfüllenden Richtlinien und Vorschiften der Landeshauptstadt Dresden. Ein Rechtsanspruch auf die Gewährung einer Zuwendung ergibt sich daraus nicht."]
["In der Landeshauptstadt Dresden werden vorrangig Angebote durch in Dresden ansässige Träger der freien Jugendhilfe gefördert. Zielgruppe dieser sind Dresdner junge Menschen und deren Familien. "]
["Angebote anderer Träger der freien Jugendhilfe, die überregional oder in anderen Gebietskörperschaften tätig sind, können gefördert werden, wenn sie den Bedarf von Dresdner jungen Menschen erfüllen und als Träger der freien Jugendhilfe nach § 75 SGB VIII anerkannt sind."]
["Die Schulsozialarbeit wird mit bis zu 80 Prozent aus Fördermitteln des Freistaates Sachsen gefördert, sofern das zu beantragende Angebot Bestandteil dieses Förderprogramms ist. Für diese Angebote gelten die zuwendungsrechtlichen Regelungen des Landes, insbesondere die FRL Schulsozialarbeit und die Verwaltungsregelungen zur Anwendung der FRL Schulsozialarbeit, welche durch Regelungen der Landeshauptstadt Dresden ergänzt werden."]
["Der Antrag auf Zuwendung muss form- und fristgerecht eingereicht werden. Er muss vollständig sein. Die Zuwendung kann für maximal ein Jahr beantragt werden. Antragsschluss ist jeweils der 31. August des Vorjahres zum geplanten Förderzeitraum. "]
["Die im Antrag dargestellten Ausgaben müssen im direkten Zusammenhang mit der Jugendhilfeleistung (Angebot) stehen. Ausgaben des Antragstellers, die ihm auch anfallen würden, wenn er diese hier zur Beantragung stehende Leistung nicht erbringt, sind nicht zuwendungsfähig. Ausgaben, die komplett aus anderen Mitteln finanziert werden, sind nicht im Antrag darzustellen (ebenso nicht die entsprechenden Finanzierungsquellen). "]
["Antrag Personalausgabenförderung:"]
["Grundsätzlich werden nur pädagogische Fachkräfte entsprechend den Regelungen des Freistaates Sachsen gefördert. Die Person muss für die Aufgabenerfüllung persönlich geeignet sein. Diese Einschätzung obliegt dem Antragsteller."]
["Neben dem Blatt \"Angaben zur Fachkraft\" sind - sofern noch nicht vorliegend - der Nachweis zum Berufs- bzw. Studienabschluss einzureichen. Bachelor-Studienabschlüsse Soziale Arbeit bedürfen in der Regel der staatlichen Anerkennung. Der Nachweis ist vorzulegen. Die Personalausgaben werden von der Antragsbehörde auf Einhaltung des Besserstellungsverbotes gemäß Nr. 1.3 ANBest-P auf der Grundlage des aktuell geltenden TVöD geprüft. Zur Feststellung der Entgelt-Stufe wird der berufliche Werdegang mit Angaben zu den Einsatzstellen, der beruflichen Tätigkeit und zeitlichen Dauer benötigt."]
["Ausfüllhinweise (am PC):"]
["Beginnen Sie mit dem Ausfüllen des Formulars beim Deckblatt."]
["Das Antragsformular enthält Zellverknüpfungen und selbstrechnende Zellen, die geschützt sind. Es müssen nur die fett umrandeten Zellen ausgefüllt werden. Fehlermeldungen sind erst nach dem vollständigen Ausfüllen  zu beachten."]
["Zahlen sind fortlaufend und ohne Freizeichen, Punkte oder Währung einzugeben."]
["Tabellenblätter, die nicht für die Antragstellung benötigt werden, sind nicht zu löschen; es sind nur die Tabellenblätter auszudrucken, die ausgefüllt wurden."]
["Druck: Auf Grund verschiedener PC-Einstellungen kann es vorkommen, dass an Ihrem PC für ein hier angelegtes Tabellenblatt 2 Seiten ausgedruckt werden. Bitte richten Sie die Seite neu ein (Menü: \"Ansicht\" -> \"Seitenumbruchvorschau\" -> mit der linken Maustaste die blauen Balken so verschieben, dass nur noch eine Seite angezeigt wird -> Menü: \"Ansicht\" -> \"Normal\"."]

{"sheet":"Deckblatt","index":1,"n_rows":78,"n_cols":24,"rows_kept":78,"merged":[[2,0,3,9],[2,12,3,21],[4,0,5,9],[5,12,7,21],[6,0,7,9],[8,0,9,9],[9,12,10,21],[11,12,11,16],[11,17,12,21],[13,12,13,17],[14,12,15,21],[17,18,19,21],[22,2,22,6],[22,7,22,8],[22,9,22,15],[23,2,23,5],[23,7,23,8],[23,9,23,13],[23,14,23,15],[23,16,23,19],[25,0,27,21],[57,0,57,3],[57,4,57,6],[57,7,57,10],[57,12,57,14],[57,15,57,17],[57,18,57,21],[58,0,58,3],[58,4,58,6],[58,7,58,10],[58,12,58,14],[58,15,58,17],[58,18,58,21],[76,0,76,5],[76,16,76,21],[78,0,78,21]]}
["Landeshauptstadt Dresden - Jugendamt",{"$nulls":20},"Förderung von Trägern der freien Jugendhilfe"]
["Antragsteller ",{"$nulls":11},"Aktenzeichen (sofern bekann):"]
[{"$nulls":23},"Nur die fett umrandeten Felder müssen am PC ausgefüllt werden."]
[]
[{"$nulls":12},"Angebotsbezeichnung:"]
[]
[]
[]
[{"$nulls":12},"Anschrift des Angebotes (Durchführungsort):"]
[]
[]
["Antrags- und Bewilligungsbehörde:                                                                                                                                                                                                                                                                                    ",{"$nulls":11},"Antragszeitraum:"]
["Landeshauptstadt Dresden"]
["Jugendamt, Abt. Kinder-, Jugend- und",{"$nulls":11},"Antragszeitraum: Datum von - bis  "]
["Familienförderung, SG Zuschusswesen"]
["Postfach 12 00 20"]
["01001 Dresden ",{"$nulls":17},"Abgabetermin:"]
["Antrag auf Gewährung einer Zuwendung",{"$nulls":17},"31.08. des Vorjahres"]
[" - Schulsozialarbeit - "]
["(§ 13 SGB VIII)"]
[]
["Es wird folgende Zuwendung beantragt:"]
[null,null,"Personalausgaben",{"$nulls":4},"VzÄ",null,"Sachausgaben",{"$nulls":6},"gesamt"]
[null,null,{"$f":"'Sach-,Personalausg.Finanzierung'!G25","v":0},{"$nulls":3},"Euro",{"$f":"'Sach-,Personalausg.Finanzierung'!N13","v":0},null,{"$f":"'Sach-,Personalausg.Finanzierung'!K25","v":0},{"$nulls":4},"Euro",null,{"$f":"C24+J24","v":0},{"$nulls":3},"Euro",null,null,"Erst die Folgeblätter ausfüllen!"]
[]
["Erforderliche Unterlagen:\nDie Unterlagen sind vollständig in digitaler Form der Antragsbehörde zu übersenden an:\njugendamt-zw@dresden.de"]
[]
[]
[]
[" - ","Satzung/Gesellschaftervertrag"]
[]
[" - ","aktueller Vereins-/Handelsregisterauszug"]
[]
[" - ","Vertretungsberechtigung (Formular siehe Folgeblatt)"]
[]
[" - ","Nachweis der Gemeinnützigkeit (i. d. R. Steuerfreistellungsbescheid d. Finanzamtes)"]
[]
[" - ","Anerkennung nach § 75 SGB VIII "]
[null,"(sofern Förderung auf Dauer angelegt oder Träger anderer Gebietskörperschaft angehört)"]
[]
[" - ","Konzeption inkl. Qualitätsentwicklungsbeschreibung"]
[]
[" - ","Jahresarbeitsplanung (Abgabe bis zum 30.11. des Vorjahres)"]
[]
[" - ","Berufsabschluss/Nachweis zur staatlichen Anerkennung für jede beantragte Person"]
[]
["Anlagen:"]
[" - ","Vertretungsregelung"]
[]
[" - ","Sach- und Personalausgaben"]
[]
[" - ","\"Angaben zur Fachkraft\" für jede beantragte Person"]
[]
[" - ","Ausgaben- und Finanzierungsplan"]
[]
["Ansprechpersonen:"]
["für die Förderung/Finanzen:",{"$nulls":11},"für die sozialpädagogische/fachliche Arbeit im Angebot:"]
["Name",{"$nulls":3},"Tel./Mobilfunk:",null,null,"E-Mail-Adresse",{"$nulls":4},"Name",null,null,"Tel./Mobilfunk:",null,null,"E-Mail-Adresse"]
[]
[]
["Erklärung des Antragstellers:"]
["Der Antragsteller erklärt, dass:"]
[" - ","das Vorhaben noch nicht begonnen wurde, sofern nicht jährlich wiederkehrend,"]
[" - ","die Angaben im Antrag vollständig und richtig sind;"]
[" - ","die Grundsätze einer sparsamen und wirtschaftlichen Haushaltsplanung eingehalten wurden,"]
[" - ","die Gewähr der zweckentsprechenden und wirtschaftlichen Verwendung der Mittel gegeben ist,"]
[" - ","die fachlichen Voraussetzungen für die geplante Maßnahme erfüllt werden,"]
[" - ","gemeinnützige Ziele verfolgt werden,"]
[" - ","die Gewähr für eine den Zielen des Grundgesetzes förderliche Arbeit gegeben ist."]
[" - ","Es liegt eine Vorsteuerabzugsberechtigung für die im Förderbereich anfallenden Ausgaben vor: ",{"$nulls":18},"Ja/Nein"]
["Belehrung:"]
["Der Antragsteller wird belehrt, dass:"]
[" - ","Ausgaben - sofern eine  Vorsteuerabzugsberechtigung für die im Förderbereich anfallenden Ausgaben "]
[null,"vorliegt - ohne Umsatzsteuer anzugeben sind und"]
[" - ","Änderungen, die Auswirkungen auf den Antrag haben, unverzüglich und unaufgefordert anzuzeigen sind."]
[]
[]
["Ort, Datum",{"$nulls":6},"rechtsverbindliche Unterschrift(en)",{"$nulls":8},"in PC-/Blockschrift"]

{"sheet":"Vertretungsregelung","index":2,"n_rows":54,"n_cols":19,"rows_kept":54,"merged":[[0,13,0,16],[2,8,2,16],[5,0,5,16],[10,7,10,16],[12,0,12,16],[13,18,19,21],[14,11,14,13],[14,14,14,16],[15,1,15,10],[15,14,15,16],[16,1,16,10],[16,14,16,16],[17,1,17,10],[17,14,17,16],[18,1,18,10],[18,14,18,16],[19,1,19,10],[19,14,19,16],[20,1,20,10],[20,14,20,16],[23,0,23,16],[24,1,24,15],[28,0,28,16],[29,11,30,13],[29,14,30,16],[31,1,31,10],[31,14,31,16],[32,1,32,10],[32,14,32,16],[33,1,33,10],[33,14,33,16],[36,4,36,16],[37,1,37,16],[39,1,39,11],[39,15,43,15],[40,1,40,11],[44,1,44,16],[47,14,47,16],[49,0,50,15],[51,0,51,13],[52,0,52,3],[52,12,52,16]]}
["Landeshauptstadt Dresden - Jugendamt",{"$nulls":11},"Az:",{"$f":"Deckblatt!M3","v":0}]
[]
["Vertretungsregelung für den Zeitraum"]
[]
["Maßnahmeträger: (Name des Vereins/ der Körperschaft/Personenvereinigung)"]
[]
[]
["Der Maßnahmeträger ist:  (Zutreffendes ankreuzen)"]
[]
["rechtsfähig",{"$nulls":4},"nicht rechtsfähig",null,"und ggf. Teil des rechtsfähigen Körperschaft (benennen):"]
[]
["Vertretungsregelung:"]
["Vertretungsberechtiger Vorstand gemäß Satzung/Ordnung/Gesellschaftervertrag:"]
[{"$nulls":12},"Vertretungsberechtigung",{"$nulls":5},"In der Satzung ist festgelegt, ob der Verein durch eine oder mehrere Personen gleichzeitig nach innen und außen vertreten wird. Besteht für ein oder mehrere Vorstandsmitglieder das alleinige Vertretungsrecht, wird nur die Spalte \"allein\" angekreuzt. Kann der Verein nur durch mehrere Vorstandsmitglieder gleichzeitig vertreten werden, muss in der Spalte \"gemeinsam mit\" eingetragen werden, wer mit wem gemeinsam vertritt. Z. B.: \"2.\" oder \"2. oder 3. oder 4.\" (wenn jeweils 2 gemeinsam vertreten)"]
["Nr.","Name, Vorname, Funktion (z. B. Erster Vorsitzender)",{"$nulls":9},"allein\n(ankreuzen)",null,null,"gemeinsam mit \n(Nr. nennen)"]
["1."]
["2."]
["3."]
["4."]
["5."]
["6."]
[]
["Geschäftsführer:"]
["Der vertretungsberechtigte Vorstand hat gemäß Satzung/Ordung/Gesellschaftervertrag folgende Person zum Geschäftsführer ernannt:"]
[]
[null,"Name, Vorname"]
[]
["Vollmacht/Unterschriftsberechtigung "]
["Die vertretungsberechtigte(n) Person(en) erteilen Untervollmachten an:"]
[{"$nulls":11},"allein\n(ankreuzen)",null,null,"gemeinsam mit \n(Nr. nennen)"]
["Name, Vorname, Funktion"]
["1."]
["2."]
["3."]
["Die Untervollmacht umfasst folgende Geschäfts- bzw. Verwaltungshandlungen:"]
[" - für alle Angebote"]
[" - für das/die Angebot(e)"]
[]
[]
[null," - Beantragung von Fördermitteln",{"$nulls":13},"Zutreffendes ankreuzen"]
[null," - Beantragung von Auszahlungen"]
[null," - Verwendungsnachweisführung"]
[null," - Einlegen von Rechtsmitteln (Widerspruch, Klage)"]
[null," - andere (benennen)"]
[]
[]
["Mitglieder des Stadtjugendring Dresden e. V.:"]
["Die Vollmacht zwischen dem o. g. Träger und dem Stadtjugendring Dresden e. V. vom "]
[]
["behält hinsichtlich der Ermächtigung zu allen Verwaltungshandlungen, die Beantragung und Gewährung von Fördermitteln der Landeshauptstadt Dresden betreffend, ihre Gültigkeit: (ankreuzen)"]
[]
["Die aktuelle Vollmacht ist beigefügt: (ankreuzen)"]
[]
["Ort, Datum",{"$nulls":4},"rechtsverbindliche Unterschrift(en)",{"$nulls":6},"in Block-/PC-Schrift"]

{"sheet":"Sach-,Personalausg.Finanzierung","index":3,"n_rows":33,"n_cols":19,"rows_kept":33,"merged":[[0,14,0,16],[4,1,4,5],[4,6,4,12],[4,14,4,16],[5,1,5,5],[5,6,5,12],[5,14,5,16],[5,18,8,22],[6,1,6,5],[6,6,6,12],[6,14,6,16],[7,1,7,5],[7,6,7,12],[7,14,7,16],[8,1,8,5],[8,6,8,12],[8,14,8,16],[9,1,9,5],[9,6,9,12],[9,14,9,16],[10,1,10,5],[10,6,10,12],[10,14,10,16],[11,14,11,16],[12,0,12,10],[12,14,12,16],[14,14,14,16],[15,14,15,16],[16,14,16,16],[17,14,17,16],[18,14,18,16],[19,14,19,16],[20,0,20,16],[22,0,23,5],[22,6,22,9],[22,10,22,13],[22,14,22,16],[23,6,23,9],[23,10,23,13],[23,14,23,16],[24,6,24,9],[24,10,24,13],[24,14,24,16],[25,6,25,9],[25,10,25,13],[25,14,25,16],[26,6,26,9],[26,10,26,13],[26,14,26,16],[27,6,27,9],[27,10,27,13],[27,14,27,16],[28,6,28,9],[28,10,28,13],[28,14,28,16],[29,6,29,9],[29,10,29,13],[30,0,30,5],[30,6,30,9],[30,10,30,13],[30,14,30,16],[30,18,32,22],[31,0,31,3],[31,4,31,5],[31,6,31,9],[31,10,31,13],[31,14,31,16],[33,0,33,16]]}
["Landeshauptstadt Dresden - Jugendamt",{"$nulls":12},"Az:",{"$f":"Deckblatt!M3","v":0}]
[]
["Personalaugaben",{"$nulls":17},"Nur die fett umrandeten Felder müssen am PC ausgefüllt werden."]
["Fachkräfte in der Tätigkeit als Schulsozialarbeiter/-in:"]
["Nr.","Name, Vorname",{"$nulls":4},"Qualifikation",{"$nulls":6},"VzÄ*","in Euro"]
[1,{"$nulls":17},"Bei der Förderung können nur noch Fachkräfte berücksichtigt werden, die eine regelmäßige wöchentliche Arbeitszeit von mind. 0,5 VzÄ erbringen (Quelle: Zuwendungsbescheid KSV Sachsen 2023: \n\"Stellenanteile von unter 0,5 VzÄ (bei mehreren Fachkräften an einer Schule) sind nicht zulässig.\")"]
[2]
[3]
[4]
[5]
[6]
[{"$nulls":13},"Berufsgenossenschaft"]
["* Untersetzung der VzÄ, Angaben zu jeder Person im Blatt \n   \"Angaben zur Fachkraft\"",{"$nulls":11}," gesamt",{"$f":"SUM(N6:N11)","v":0},{"$f":"SUM(O6:Q12)","v":0}]
[]
["Sachausgaben",{"$nulls":13},"in Euro"]
[1,"Sachausgabenpauschale"]
[2,"Erstausstattung"]
[3,"Bildungsmaßnahmen"]
[4,"Erlebnispädagogische Maßnahmen"]
[{"$nulls":12}," gesamt",null,{"$f":"SUM(O16:Q19)","v":0}]
["Die Bildungsmaßnahmen und erlebnispädagogischen Maßnahmen sind in der Jahresarbeitsplanung zu beschreiben mit Angaben zum Inhalt, der Zielgruppe und der pädagogischen Zielsetzung."]
[]
["Finanzierung",{"$nulls":5},"Personalausgaben",{"$nulls":3},"Sachausgaben",{"$nulls":3},"gesamt"]
[{"$nulls":6},"in Euro",{"$nulls":3},"in Euro",{"$nulls":3},"in Euro"]
["Fördermittelantrag",{"$nulls":13},{"$f":"SUM(G25:N25)","v":0}]
["weitere öffentliche Mittel",{"$nulls":13},{"$f":"SUM(G26:N26)","v":0}]
["sonstige Finanzierungsquellen",{"$nulls":13},0]
["Eigenmittel",{"$nulls":13},{"$f":"SUM(G28:N28)","v":0}]
["gesamt",{"$nulls":5},{"$f":"SUM(G25:J28)","v":0},{"$nulls":3},{"$f":"SUM(K25:N28)","v":0},{"$nulls":3},{"$f":"SUM(G29:N29)","v":0}]
[{"$nulls":6},{"$f":"IF(O13<>G29,\"Fehler: Ausgaben ungleich Finanzierung\",\"\")","v":""},{"$nulls":3},{"$f":"IF(O20<>K29,\"Fehler: Ausgaben ungleich Finanzierung\",\"\")","v":""}]
["Eigenanteil\n(Eigenmittel + Eigenleistungen)",{"$nulls":5},"Eigenarbeitsleistung\nin Stunden",{"$nulls":3},"Stundensatz \n(max. Mindestlohn)",{"$nulls":3},"Eigenmittel %",{"$nulls":3},"Eigenleistungen sind kein Bestandteil der Ausgaben. Sie werden ihrem geldwerten Betrag entsprechend in der Berechnungsformel \"Eigenanteil in %\" auf der Ausgabenseite zu den Gesamtausgaben hinzu gerechnet und auf der Einnahmenseite bei der Berechnung des prozentualen Eigenanteils neben den Eigenmitteln mit berücksichtigt."]
["Eigenanteil in %",{"$nulls":3},{"$f":"((G32*K32)+O28)*100/((O20+O13)+(G32*K32))","v":{"$error":"#DIV/0!"}},{"$nulls":9},{"$f":"O28*100/(O20+O13)","v":{"$error":"#DIV/0!"}}]
["Weiter öffentliche Mittel sind zu beschreiben (Fördermittelgeber, Betrag)"]

{"sheet":"Angaben zur Fachkraft","index":4,"n_rows":58,"n_cols":26,"rows_kept":58,"merged":[[2,9,2,14],[4,1,4,6],[4,9,4,14],[7,0,7,4],[7,5,7,7],[7,8,7,14],[9,2,9,3],[9,4,9,6],[9,7,9,9],[12,0,13,8],[15,0,16,8],[18,0,19,8],[22,9,22,13],[23,0,23,1],[23,2,23,3],[23,5,23,7],[23,9,23,14],[26,8,27,13],[27,4,28,5],[29,1,29,14],[30,0,30,10],[30,13,32,14],[34,0,34,2],[34,3,34,4],[34,5,34,6],[34,7,34,8],[34,9,34,10],[34,11,34,12],[34,13,34,14],[36,9,36,14],[37,0,37,2],[37,3,37,5],[37,6,37,8],[37,9,38,14],[38,0,38,2],[38,3,38,5],[38,6,38,8],[41,0,41,14],[46,0,46,2],[46,3,46,4],[46,5,46,6],[46,8,46,10],[46,11,46,12],[46,13,46,14],[47,0,47,2],[47,3,47,4],[47,5,47,6],[47,8,47,10],[47,11,47,12],[47,13,47,14],[48,0,48,2],[48,3,48,4],[48,5,48,6],[48,8,48,10],[48,11,48,12],[48,13,48,14],[52,0,52,3],[52,4,52,5],[52,6,52,8],[52,9,53,10],[52,11,52,12],[52,13,53,14],[53,4,54,5],[54,9,54,10],[54,13,54,14],[55,0,55,3],[55,4,55,8],[55,9,57,11],[55,12,58,14],[56,0,56,3],[56,4,56,8],[57,4,57,8]]}
["Landeshauptstadt Dresden - Jugendamt",{"$nulls":13},"Förderung von Trägern der freien Jugendhilfe"]
[]
["Angaben zur Fachkraft",{"$nulls":7},"Zeitraum:"]
[]
["Träger:",{"$nulls":7},"Angebot:"]
["Zutreffendes ist anzukreuzen."]
["Name, Vorname",{"$nulls":4},"Geburtsdatum",null,null,"Stellen-/Tätigkeitsbezeichnung"]
[]
["Stellenbeschreibung"]
["ist beigefügt",null,"oder",null,"Stellenbeschreibung liegt\ndem Amt vor mit Datum: ",{"$nulls":6},"Sie behält ihre Gültigkeit:"]
["Ausbildung"]
["Berufsabschluss:"]
[{"$nulls":9},"Kopie* des Abschlusses:"]
[{"$nulls":9},"ist beigefügt:",null,null,"liegt dem Amt vor:"]
["berufsbegleitende Ausbildung:"]
[{"$nulls":9},"Immatrikulationsbescheinigung:"]
[{"$nulls":9},"ist beigefügt:",null,null,"liegt dem Amt vor:"]
["Zusatzqualifikationen:"]
[{"$nulls":9},"Kopie*:"]
[{"$nulls":9},"ist beigefügt:",null,null,"liegt dem Amt vor:"]
["*Die kopierten Qualifikationsnachweise müssen mit dem Vermerk des Trägers \"Das Original hat am ... (Datum) vorgelegen\" versehen sein."]
["Vergütung"]
["in Anlehnung an den Tarif öffentlicher Dienst (TVöD bzw. TVÜ-VKA)",{"$nulls":8},"anderer Tarifvertrag (Bezeichnung)"]
["Entgeltgruppe/\nStufe:",{"$nulls":4},"übergeleitete(r)  Beschäftigte(r)"]
[]
["Sozialdaten (nur für \"übergeleitete Beschäftigte\")"]
["Familienstand:",null,"ledig",null,"verheiratet",null,"verwitwet",null,"Ehepartner im öffentlichen Dienst  bzw. nach dem Überleitungstarifvertrag des TVöD vergütet:"]
["Stichtag 30.09.2005",{"$nulls":3},"geschieden"]
[]
["Kinder: ","(Angaben sind für alle übergeleitete Beschäftigte zu leisten; es sind nur die Kinder zu berücksichtigen, die bis zum 31.12.2005 geboren wurden)"]
["1. Anzahl der Kinder, für welche der/die Beschäftigte im Antragszeitraum Kindergeld erhält:"]
["                       ",{"$nulls":24},","]
[]
[]
["Geb.daten der zu berücksichtigenden Kinder:"]
[{"$nulls":3},"1. Kind",null,"2. Kind",null,"3. Kind",null,"4. Kind",null,"5. Kind",null,"6. Kind"]
["Beschäftigungszeiten",{"$nulls":8},"Unterbrechungszeiten mit Auswirkungen auf die Stufenlaufzeit gemäß § 16 TVöD (z.B. Elternzeit)",{"$nulls":5}," ->"]
["in der o. g. Tätigkeit beschäftigt seit: ",null,null,"beim Träger beschäftigt seit/\nausgeschieden am:",null,null,"Aufnahme der Tätigkeit im Angebot am:"]
[]
["Weitere Unterbrechungszeiten ohne Lohnfortzahlung durch den Zuwendungsempfänger",{"$nulls":13},"ggf. Blatt anfügen"]
["(z.B. Beschäftigungsverbot, Schutzfristen nach Mutterschutzgesetz, Langzeiterkrankung)"]
[]
["Arbeitsumfang ",{"$nulls":4},"Jahresdurchschnitt:"]
["Regelmäßige wöchentliche Arbeitszeit:",{"$nulls":4},{"$f":"ROUND((F47/12*D47)+(N47/12*L47)+(F48/12*D48)+(N48/12*L48)+(F49/12*D49)+(N49/12*L49),2)","v":0},"h/Woche",null,{"$f":"ROUND(F44/39,2)","v":0},"in VzÄ","Vollzeit nach TVöD 39h/W"]
[]
["Datum (von - bis)",null,null," in Monaten",null,"Std./Woche",null,null,"Datum (von - bis)",null,null," in Monaten",null,"Std./Woche"]
[]
[]
[]
[]
["Lohnnebenkosten etc.",{"$nulls":3},"geringfügig beschäftigt (Minijob)"]
[]
["AG-Anteile SV in %",{"$nulls":3},"Welche Krankenkasse?",null,"Umlage-Verfahren der Krankenkassen in %",null,null,"AG-Anteile ges.               in EUR",null,"VWL in EUR",null,"bAV/Jahr                 in EUR"]
["PV","RV","AV","KV",null,null,"U1","U2","IU",null,null,"im Monat","im Jahr"]
[]
["PV: Pflegeversicherung                                RV: Rentenversicherung",{"$nulls":3},"U1: Lohnfortzahl.verfahren der Krankenkassen im Krankheitsfall",{"$nulls":4},"VWL: Vermögenswirksame Leistungen für 1,0 VzÄ max. 6,65 € pro Monat",null,null,"bAV: die Arbeitgeberaufwendungen für eine betriebl. Altersvorsorge sind max. in Höhe der städtischen Altersvorsorge (ZVK) zuwendungsfähig. "]
["AV: Arbeitslosenversicherung                         KV: Krankenversicherung",{"$nulls":3},"U2: Lohnfortzahlungsverfahren der Krankenkassen bei Mutterschaft"]
[{"$nulls":4},"IU: Insolvenzgeldumlage an die KK (ausgenommen Körperschaften des öff. Rechts)"]